bitfinex-derivatives/quotes_BTCF0:USTF0_20250406
["timestamp","ask_amount","ask_price","bid_price","bid_amount"]
[1743967487969,0.3828,79432.0,79431.0,0.3814]
[1743967488175,0.3608,79433.0,79431.0,0.3814]
[1743967488483,0.00010812,79432.0,79431.0,0.3814]
[1743967488678,0.3865,79447.0,79431.0,0.7422]
[1743967488880,0.3965,79447.0,79438.0,0.3608]
[1743967489186,0.2026,79447.0,79446.0,0.3608]
[1743967489376,0.0004,79456.0,79446.0,0.3608]
[1743967489585,0.0004,79456.0,79453.0,0.3608]
[1743967490081,0.00029271,79454.0,79453.0,0.3608]
[1743967490283,1e-08,79464.0,79453.0,0.51152]
[1743967490587,0.00096002,79464.0,79454.0,0.66212013]
[1743967490782,0.3772,79476.0,79463.0,0.3608]
[1743967491086,0.38788,79476.0,79466.0,0.35088949]
[1743967491378,0.0004,79492.0,79470.0,0.3608]
[1743967491586,0.00018884,79479.0,79471.0,0.183]
[1743967491785,0.1833,79487.0,79478.0,0.3608]
[1743967491984,0.18406,79487.0,79485.0,0.3608]
[1743967492178,0.0004,79492.0,79486.0,0.183]
[1743967492386,9.057e-05,79491.0,79486.0,0.18408]
[1743967492978,0.18607227,79512.0,79486.0,0.18408]
[1743967493186,0.011,79507.0,79505.0,0.3608]
[1743967493487,0.011,79507.0,79505.0,0.36188]
[1743967493684,0.53365296,79506.0,79505.0,0.00108]
[1743967493879,0.54429296,79506.0,79497.0,0.35088949]
[1743967494081,0.54429296,79506.0,79497.0,0.35188949]
[1743967495190,0.3608,79498.0,79497.0,0.001]
[1743967495388,0.3908,79498.0,79494.0,0.00018872]
[1743967495583,0.3771,79497.0,79494.0,0.00126872]
[1743967495786,0.4171,79497.0,79494.0,0.00126872]
[1743967496087,0.13277527,79496.0,79494.0,0.00126872]
[1743967496292,0.17277527,79496.0,79494.0,0.00018872]
[1743967496586,0.3771,79495.0,79481.0,0.11861936]
[1743967496790,0.4171,79495.0,79482.0,0.1959]
[1743967496984,0.14063163,79494.0,79482.0,0.1969]
[1743967497178,0.18063163,79494.0,79482.0,0.1969]
[1743967497379,0.45395,79493.0,79482.0,0.5577]
[1743967497589,0.48395,79493.0,79482.0,0.5577]
[1743967497781,0.13439974,79492.0,79482.0,0.1969]
[1743967497981,0.16439974,79492.0,79482.0,0.5577]
[1743967498181,0.3659,79491.0,79482.0,0.1969]
[1743967498383,0.3959,79491.0,79482.0,0.1969]
[1743967498686,0.3608,79489.0,79482.0,0.001]
[1743967498887,0.37084231,79488.0,79480.0,0.00018872]
[1743967499079,0.54220646,79488.0,79480.0,0.00126872]
[1743967499480,0.4007,79488.0,79480.0,0.00126872]
[1743967499681,0.3608,79481.0,79470.0,0.35088949]
[1743967499974,0.3707,79480.0,79470.0,0.35088949]
[1743967500284,0.00014341,79479.0,79471.0,0.1874]
[1743967500482,0.00015662,79478.0,79471.0,0.00068]
[1743967500788,0.3608,79472.0,79471.0,0.00068]
[1743967500978,0.40144,79472.0,79467.0,0.00081791]
[1743967501175,0.3712,79471.0,79467.0,0.00149791]
[1743967501481,0.41196,79471.0,79467.0,0.00149791]
[1743967501679,0.13999278,79470.0,79467.0,0.00149791]
[1743967501880,0.18067278,79470.0,79467.0,0.00149791]
[1743967502084,0.3696,79469.0,79467.0,0.00149791]
[1743967502285,0.4096,79469.0,79467.0,0.00081791]
[1743967502586,0.14311592,79468.0,79444.0,0.3608]
[1743967502789,0.3608,79455.0,79444.0,0.29793064]
[1743967502988,0.3608,79445.0,79440.0,0.37388041]
[1743967503187,0.3608,79443.0,79425.0,0.1913]
[1743967503375,0.3908,79443.0,79425.0,0.1913]
[1743967503678,0.3307739,79442.0,79424.0,1.80824]
[1743967503884,0.3307739,79442.0,79420.0,0.8998]
[1743967503885,0.3608,79432.0,79420.0,0.8998]
[1743967504192,0.3608,79421.0,79420.0,0.89917053]
[1743967504485,0.4008,79421.0,79420.0,0.89917053]
[1743967504790,0.53855547,79421.0,79420.0,0.89917053]
[1743967505180,0.4008,79421.0,79420.0,0.89917053]
[1743967505384,0.04012222,79421.0,79420.0,0.89917053]
[1743967505684,0.04012222,79421.0,79420.0,0.83630117]
[1743967505884,0.00018884,79428.0,79420.0,0.98630117]
[1743967506090,0.006,79443.0,79426.0,0.3608]
[1743967506291,0.026,79443.0,79435.0,0.3608]
[1743967506485,0.34310931,79442.0,79436.0,0.1881]
[1743967506784,0.0004,79456.0,79436.0,0.1881]
[1743967506978,0.0004,79456.0,79455.0,0.3608]
[1743967507175,0.3608,79479.0,79455.0,0.36152]
[1743967507389,0.184,79471.0,79463.0,0.3608]
[1743967507581,0.1998,79470.0,79463.0,0.36168]
[1743967507776,0.23068001,79470.0,79463.0,0.36168]
[1743967507991,0.33791396,79469.0,79463.0,0.00088]
[1743967508191,0.36855396,79469.0,79459.0,0.00018884]
[1743967508381,0.3608,79460.0,79459.0,0.00114884]
[1743967508582,0.39144,79460.0,79459.0,0.00018884]
[1743967508781,0.67692088,79460.0,79439.0,0.1881]
[1743967508990,0.3967,79459.0,79439.0,0.18898]
[1743967509187,0.45758001,79459.0,79439.0,0.18898]
[1743967509485,0.45758001,79459.0,79431.0,0.00062947]
[1743967509486,0.3608,79440.0,79431.0,0.00062947]
[1743967509680,0.3608,79432.0,79431.0,0.00064]
[1743967509883,0.41148,79432.0,79420.0,1.19710117]
[1743967510079,0.1824,79431.0,79420.0,0.83702117]
[1743967510283,0.24304,79431.0,79420.0,0.83702117]
[1743967510482,0.14138136,79430.0,79423.0,0.3608]
[1743967510691,0.17186092,79430.0,79423.0,0.36148]
[1743967510890,0.1824,79429.0,79423.0,0.36148]
[1743967511089,0.22308,79429.0,79423.0,0.36148]
[1743967511395,0.14009644,79428.0,79423.0,0.36148]
[1743967511694,0.00064,79428.0,79424.0,0.549]
[1743967511992,0.1824,79437.0,79425.0,0.12993064]
[1743967512193,0.2024,79437.0,79434.0,0.3608]
[1743967512391,0.13386496,79436.0,79434.0,0.36152]
[1743967512592,0.33838496,79436.0,79434.0,0.36152]
[1743967512792,0.185,79435.0,79434.0,0.36152]
[1743967513087,0.19564,79435.0,79434.0,0.36152]
[1743967513392,1.02395753,79435.0,79420.0,0.74168545]
[1743967513591,0.7216,79421.0,79420.0,0.74240545]
[1743967513792,0.75244,79421.0,79420.0,0.74240545]
[1743967513988,0.886291,79421.0,79420.0,0.74240545]
[1743967514184,0.88631208,79421.0,79420.0,0.74240545]
[1743967514385,0.88615753,79421.0,79420.0,0.74240545]
[1743967514688,0.52735753,79421.0,79420.0,0.74240545]
[1743967514890,0.52735753,79421.0,79420.0,0.67953609]
[1743967515088,0.68691423,79421.0,79400.0,0.1]
[1743967515289,0.1828,79420.0,79410.0,0.35088949]
[1743967515587,0.00018884,79418.0,79411.0,0.1965]
[1743967515789,0.00013035,79417.0,79411.0,0.3926]
[1743967515984,0.01013035,79417.0,79411.0,0.3926]
[1743967516291,0.00012932,79416.0,79413.0,0.3608]
[1743967516491,0.00012932,79416.0,79414.0,0.3926]
[1743967517391,0.3608,79452.0,79415.0,0.37778402]
[1743967517599,0.3804,79442.0,79440.0,0.3608]
[1743967517791,0.54540481,79442.0,79441.0,0.01697925]
[1743967517992,0.54540481,79442.0,79430.0,0.71168949]
[1743967518791,0.54540481,79442.0,79431.0,0.1821]
[1743967518983,0.5549067,79442.0,79431.0,0.1821]
[1743967519186,0.00013838,79441.0,79431.0,0.1821]
[1743967519387,0.03,79441.0,79437.0,0.3608]
[1743967519586,0.13421756,79440.0,79437.0,0.3608]
[1743967519796,0.16421756,79440.0,79438.0,0.1967]
[1743967520004,0.184,79439.0,79438.0,0.1967]
[1743967520189,0.21508,79439.0,79438.0,0.00064]
[1743967520388,0.54889754,79439.0,79438.0,0.00064]
[1743967520698,0.69889754,79439.0,79438.0,0.00064]
[1743967520902,0.69889754,79439.0,79430.0,0.3608]
[1743967521095,0.54889754,79439.0,79430.0,0.36144]
[1743967521404,0.3608,79434.0,79430.0,0.00064]
[1743967521693,0.3879,79433.0,79428.0,0.00018884]
[1743967521895,0.58245255,79433.0,79428.0,0.00018884]
[1743967522284,0.58245255,79433.0,79428.0,0.00082884]
[1743967522487,0.73245255,79433.0,79400.0,0.1]
[1743967522799,0.3608,79421.0,79400.0,0.1]
[1743967522991,0.3847,79420.0,79401.0,0.1978]
[1743967523191,0.3608,79413.0,79401.0,0.1978]
[1743967523391,0.3847,79412.0,79401.0,0.1978]
[1743967523593,0.56481834,79412.0,79401.0,0.1978]
[1743967523800,0.56481834,79412.0,79400.0,0.1]
[1743967524000,0.56481834,79412.0,79400.0,0.03713064]
[1743967524195,0.56481834,79412.0,79401.0,0.1978]
[1743967524401,0.56481834,79412.0,79400.0,0.03713064]
[1743967524598,0.3608,79401.0,79400.0,0.03713064]
[1743967524798,0.4208,79401.0,79379.0,0.1876]
[1743967524999,0.735,79400.0,79385.0,0.26295652]
[1743967525203,0.3608,79386.0,79385.0,0.26295652]
[1743967525398,0.4008,79386.0,79385.0,0.26295652]
[1743967525603,0.54194439,79386.0,79385.0,0.26295652]
[1743967526100,0.9122455,79386.0,79385.0,0.26295652]
[1743967526590,0.9182455,79386.0,79385.0,0.26295652]
[1743967526790,0.91836622,79386.0,79360.0,0.35088949]
[1743967527104,0.3608,79361.0,79360.0,0.28802013]
[1743967527399,0.3608,79361.0,79340.0,0.35088949]
[1743967527608,0.3608,79345.0,79340.0,0.35088949]
[1743967527901,0.00015357,79344.0,79340.0,0.35088949]
[1743967528104,0.00015357,79344.0,79334.0,0.35088949]
[1743967528406,0.0001167,79343.0,79334.0,0.35088949]
[1743967528902,0.0001167,79343.0,79334.0,0.50088949]
[1743967529402,0.3609167,79343.0,79334.0,0.50088949]
[1743967529797,0.3608,79343.0,79334.0,0.35048949]
[1743967530105,0.3668,79343.0,79335.0,0.33605711]
[1743967530293,0.3668,79343.0,79336.0,0.01762647]
[1743967530499,0.00010193,79342.0,79337.0,0.01762647]
[1743967530807,0.3608,79339.0,79338.0,0.01762647]
[1743967531001,0.36224,79339.0,79338.0,0.01762647]
[1743967531811,0.87289766,79339.0,79320.0,0.35088949]
[1743967531995,0.3608,79324.0,79322.0,0.1907]
[1743967532306,0.00011971,79323.0,79322.0,0.1907]
[1743967532504,0.3608,79324.0,79322.0,0.1907]
[1743967532699,0.00015418,79323.0,79322.0,0.1907]
[1743967533006,0.00012118,79323.0,79322.0,0.12783064]
[1743967533202,0.00012118,79323.0,79322.0,0.27783064]
[1743967533400,0.3608,79332.0,79322.0,0.27783064]
[1743967533599,0.006,79323.0,79322.0,0.12783064]
[1743967534294,0.00614893,79323.0,79322.0,0.27783064]
[1743967534807,0.01114893,79323.0,79322.0,0.27783064]
[1743967535810,0.36594893,79323.0,79313.0,0.35088949]
[1743967536201,0.36594893,79323.0,79318.0,0.12606763]
[1743967536403,0.37094893,79323.0,79318.0,0.12566763]
[1743967536602,0.3608,79321.0,79313.0,0.28802013]
[1743967536797,0.3608,79314.0,79304.0,1.81068]
[1743967537008,0.3608,79305.0,79304.0,1.81068]
[1743967537307,0.36094053,79305.0,79290.0,0.35088949]
[1743967537505,0.3608,79291.0,79290.0,0.35088949]
[1743967537706,0.36224,79291.0,79285.0,0.12607637]
[1743967537904,0.36224,79291.0,79284.0,0.53776559]
[1743967538102,0.36224,79291.0,79284.0,0.57776559]
[1743967538296,0.00032962,79305.0,79285.0,0.1460915]
[1743967538506,0.00032962,79305.0,79295.0,0.35088949]
[1743967539011,0.00032962,79305.0,79301.0,0.3608]
[1743967539310,0.00032962,79305.0,79296.0,0.3726]
[1743967539311,0.00032962,79305.0,79302.0,0.13213064]
[1743967540110,0.00032962,79305.0,79302.0,0.13277064]
[1743967540506,0.00532962,79305.0,79296.0,0.13831685]
[1743967540700,0.00532962,79305.0,79296.0,0.13899685]
[1743967540902,0.01032962,79305.0,79297.0,0.12609783]
[1743967541103,0.01032962,79305.0,79297.0,0.12673783]
[1743967541613,0.00532962,79305.0,79297.0,0.12673783]
[1743967542104,0.00032962,79305.0,79297.0,0.06586847]
[1743967542512,0.00032962,79305.0,79295.0,0.29035819]
[1743967542712,0.00172963,79305.0,79295.0,0.35076182]
[1743967542915,0.00172963,79305.0,79298.0,0.12610181]
[1743967543212,0.00032962,79305.0,79298.0,0.00064]
[1743967543514,0.00172963,79305.0,79298.0,0.00064]
[1743967543705,0.3608,79303.0,79298.0,0.00064]
[1743967543904,0.1998,79302.0,79299.0,0.0177159]
[1743967544209,0.005,79299.0,79270.0,0.35012182]
[1743967544512,0.3608,79291.0,79274.0,0.36156]
[1743967544707,0.3608,79282.0,79274.0,0.00076]
[1743967544913,0.3894,79281.0,79274.0,0.0101407]
[1743967545213,0.00014961,79280.0,79270.0,0.29739316]
[1743967545410,0.3608,79275.0,79270.0,0.29739316]
[1743967545711,0.36244,79275.0,79270.0,0.29739316]
[1743967546107,0.3608,79290.0,79274.0,0.3608]
[1743967546314,0.3839,79298.0,79285.0,0.3608]
[1743967546515,0.49543556,79298.0,79285.0,0.3608]
[1743967546718,0.11153556,79298.0,79285.0,0.63694715]
[1743967546916,0.11153556,79298.0,79297.0,0.3608]
[1743967547212,0.11162534,79298.0,79297.0,0.3608]
[1743967547908,0.11162534,79298.0,79297.0,0.48692646]
[1743967548109,0.26090494,79298.0,79290.0,0.00018921]
[1743967548405,0.38734009,79297.0,79292.0,0.3608]
[1743967549019,0.53782948,79297.0,79292.0,0.3608]
[1743967549216,0.3884601,79297.0,79292.0,0.3608]
[1743967549420,0.3884601,79297.0,79293.0,0.0002]
[1743967549715,0.3934601,79297.0,79293.0,0.0002]
[1743967550116,0.3994601,79297.0,79293.0,0.0002]
[1743967550414,0.0122601,79297.0,79294.0,0.12611135]
[1743967550715,0.0122601,79297.0,79295.0,0.0002]
[1743967550914,0.0062601,79297.0,79295.0,0.0002]
[1743967551113,0.0122601,79297.0,79295.0,0.0002]
[1743967551306,0.0122601,79297.0,79292.0,0.29813064]
[1743967551506,0.01114009,79297.0,79292.0,0.29813064]
[1743967551708,0.01114009,79297.0,79293.0,0.12611056]
[1743967554323,0.3608,79329.0,79294.0,0.0080438]
[1743967554520,0.58416468,79333.0,79314.0,0.7216]
[1743967554816,0.22336468,79333.0,79314.0,0.7316]
[1743967555119,0.22336468,79333.0,79315.0,0.30871135]
[1743967555516,0.00018921,79325.0,79315.0,0.30871135]
[1743967555721,0.00018921,79325.0,79321.0,0.3608]
[1743967556223,0.14955859,79325.0,79322.0,0.01818514]
[1743967556423,0.14926568,79325.0,79323.0,0.01818514]
[1743967556723,0.15538569,79325.0,79324.0,0.01818514]
[1743967556925,0.15548292,79325.0,79324.0,0.01818514]
[1743967557420,0.30538569,79325.0,79315.0,0.18240282]
[1743967557621,0.15538569,79325.0,79311.0,0.3608]
[1743967557811,0.3608,79315.0,79310.0,0.00018921]
[1743967558008,0.39842403,79315.0,79298.0,0.3608]
[1743967558214,0.3608,79299.0,79280.0,0.22708704]
[1743967558424,0.3608,79288.0,79280.0,0.22708704]
[1743967558724,0.36192001,79288.0,79270.0,0.35043829]
[1743967559225,0.36192001,79288.0,79280.0,0.00018921]
[1743967559520,0.51192001,79288.0,79280.0,0.00018921]
[1743967559717,0.3608,79281.0,79280.0,0.00018921]
[1743967559908,0.36209265,79281.0,79280.0,0.00018921]
[1743967560521,0.36200001,79281.0,79270.0,0.28775814]
[1743967560817,0.1908,79280.0,79270.0,0.28775814]
[1743967561022,0.1908,79280.0,79271.0,0.00928385]
[1743967561219,0.18854427,79279.0,79271.0,0.00928385]
[1743967561425,0.18854427,79279.0,79270.0,0.28775814]
[1743967561626,0.195,79278.0,79270.0,0.28775814]
[1743967562424,0.195,79278.0,79272.0,0.3608]
[1743967562623,0.1831,79277.0,79270.0,0.29727851]
[1743967562823,0.195,79276.0,79270.0,0.29727851]
[1743967563324,0.1831,79275.0,79271.0,0.48694555]
[1743967563514,0.18727527,79276.0,79271.0,0.42407619]
[1743967563715,0.3781,79274.0,79271.0,0.3608]
[1743967563918,0.3781,79274.0,79270.0,0.28775814]
[1743967563919,0.37930001,79274.0,79270.0,0.28775814]
[1743967564115,0.3608,79273.0,79270.0,0.28775814]
[1743967564319,0.3608,79273.0,79268.0,0.00013132]
[1743967564623,0.3608,79270.0,79268.0,0.00013132]
[1743967564926,0.7425,79269.0,79253.0,0.00189258]
[1743967565129,0.7425,79269.0,79237.0,0.3608]
[1743967565130,0.3608,79254.0,79237.0,0.3608]
[1743967565425,0.3608,79238.0,79210.0,0.35043829]
[1743967565723,0.3608,79222.0,79210.0,0.53633829]
[1743967565929,0.19873977,79221.0,79210.0,0.53633829]
[1743967566222,0.33615678,79221.0,79195.0,0.02638508]
[1743967566430,0.3608,79204.0,79200.0,0.03713064]
[1743967566622,0.36200001,79204.0,79200.0,0.03713064]
[1743967566927,0.1987638,79203.0,79200.0,0.03713064]
[1743967567116,0.000145,79202.0,79200.0,0.03713064]
[1743967567425,0.00011946,79201.0,79200.0,0.04747592]
[1743967567626,0.00018935,79210.0,79200.0,0.20747592]
[1743967567820,0.1838,79217.0,79201.0,0.12625943]
[1743967568023,0.3608,79237.0,79216.0,0.3608]
[1743967568230,0.1838,79236.0,79227.0,0.35043829]
[1743967568531,0.1838,79236.0,79235.0,0.3608]
[1743967568923,0.18395163,79236.0,79235.0,0.3608]
[1743967569524,0.18895163,79236.0,79235.0,0.01702725]
[1743967569822,0.19007164,79236.0,79235.0,0.01702725]
[1743967570220,0.18992001,79236.0,79235.0,0.01702725]
[1743967570425,0.19092001,79236.0,79235.0,0.01702725]
[1743967570619,0.19103069,79236.0,79235.0,0.01702725]
[1743967571724,0.08833,79243.0,79235.0,0.6540333]
[1743967571921,0.3608,79280.0,79242.0,0.3608]
[1743967572126,0.3838,79256.0,79255.0,0.35043829]
[1743967572324,0.3838,79256.0,79255.0,0.37782725]
[1743967572525,0.3838,79256.0,79255.0,0.31495789]
[1743967573029,0.1903,79278.0,79255.0,0.31495789]
[1743967573030,0.00018935,79263.0,79255.0,0.59115837]
[1743967573225,0.3608,79288.0,79262.0,0.3608]
[1743967573431,0.384,79286.0,79278.0,0.3608]
[1743967573635,0.1971,79300.0,79285.0,0.3608]
[1743967573822,0.1971,79300.0,79299.0,0.3377831]
[1743967574028,0.5579,79300.0,79285.0,0.3608]
[1743967574331,0.5579,79300.0,79270.0,0.3608]
[1743967574332,0.3608,79294.0,79270.0,0.3608]
[1743967574524,0.3608,79294.0,79286.0,0.12611533]
[1743967574727,0.1971,79293.0,79285.0,0.00018923]
[1743967575036,0.1971,79293.0,79286.0,0.12611533]
[1743967575226,0.1979,79293.0,79286.0,0.12611533]
[1743967575426,0.1979,79293.0,79283.0,0.02650099]
[1743967575733,0.1979,79293.0,79247.0,0.3608]
[1743967575734,0.3608,79284.0,79247.0,0.3608]
[1743967575932,0.005,79291.0,79247.0,0.3608]
[1743967575933,0.3608,79277.0,79270.0,0.00935001]
[1743967576133,0.197249,79276.0,79266.0,0.12631008]
[1743967576336,0.3608,79268.0,79266.0,0.00090919]
[1743967576525,0.1884,79267.0,79266.0,0.00090919]
[1743967576828,0.00092,79267.0,79266.0,0.00090919]
[1743967577021,0.000149,79276.0,79266.0,0.53170919]
[1743967577228,0.188549,79276.0,79266.0,0.48786588]
[1743967577429,0.3608,79271.0,79266.0,0.00090919]
[1743967577632,0.7434,79270.0,79266.0,0.00090919]
[1743967577827,0.005,79268.0,79266.0,0.00090919]
[1743967578028,0.00572,79268.0,79266.0,0.00090919]
[1743967578228,0.18855637,79267.0,79258.0,0.00950345]
[1743967578430,0.37891637,79267.0,79258.0,0.00064]
[1743967578636,0.37891637,79267.0,79255.0,0.06392495]
[1743967578829,0.37891637,79267.0,79255.0,0.01036552]
[1743967579024,0.37876,79267.0,79255.0,0.00072]
[1743967579224,0.37876,79267.0,79256.0,0.12616545]
[1743967579428,0.00010948,79266.0,79256.0,0.00076]
[1743967579629,0.3608,79262.0,79251.0,0.0006309]
[1743967579834,0.4186,79261.0,79251.0,0.0006309]
[1743967580031,0.3608,79252.0,79251.0,0.0006309]
[1743967580229,0.78048377,79252.0,79251.0,0.0006309]
[1743967580433,0.41968377,79252.0,79251.0,0.0006309]
[1743967581639,0.41968377,79252.0,79249.0,0.29870118]
[1743967581839,0.1958,79251.0,79242.0,0.00960572]
[1743967582038,0.38362,79251.0,79242.0,0.01]
[1743967582441,0.41876377,79252.0,79250.0,0.3608]
[1743967582634,0.41876377,79252.0,79251.0,0.1929]
[1743967582833,0.41876377,79252.0,79251.0,0.5537]
[1743967583036,0.41876377,79252.0,79251.0,0.67988216]
[1743967583234,0.0004,79276.0,79251.0,0.67988216]
[1743967583533,0.3608,79282.0,79259.0,0.3608]
[1743967583737,0.005,79295.0,79272.0,0.3608]
[1743967583738,0.3864,79287.0,79272.0,0.3608]
[1743967583948,0.3864,79287.0,79273.0,0.1929]
[1743967584135,0.3864,79287.0,79273.0,0.50513601]
[1743967584438,0.00012756,79286.0,79279.0,0.3608]
[1743967584740,0.00012756,79286.0,79280.0,0.31613064]
[1743967584941,0.38512756,79286.0,79280.0,0.1861]
[1743967585242,0.38512756,79286.0,79280.0,0.31223601]
[1743967585839,0.38512756,79286.0,79279.0,0.3608]
[1743967586041,0.7216,79280.0,79272.0,0.00018919]
[1743967586241,0.3608,79273.0,79272.0,0.00018919]
[1743967586444,0.36093027,79273.0,79272.0,0.00018919]
[1743967587642,0.36193027,79273.0,79272.0,0.00018919]
[1743967587839,0.36193027,79273.0,79255.0,0.3608]
[1743967588032,0.3636,79272.0,79256.0,0.1905]
[1743967588233,0.36452,79272.0,79260.0,0.35043829]
[1743967588437,0.18272,79272.0,79268.0,0.3608]
[1743967588636,0.18272,79272.0,79269.0,0.322]
[1743967588838,0.00092,79272.0,79269.0,0.33272]
[1743967589145,0.00013027,79273.0,79269.0,0.33272]
[1743967589335,0.1906,79272.0,79270.0,0.12615033]
[1743967589536,0.1818,79271.0,79270.0,0.12679033]
[1743967589840,0.1828,79271.0,79270.0,0.00064]
[1743967590036,0.1828,79271.0,79266.0,0.1315]
[1743967590341,0.1906,79270.0,79267.0,0.12615033]
[1743967590538,0.3608,79268.0,79267.0,0.12615033]
[1743967590743,0.36172,79268.0,79256.0,0.06863064]
[1743967590937,0.36172,79268.0,79256.0,0.01]
[1743967590938,0.3608,79260.0,79256.0,0.01]
[1743967591144,0.3608,79257.0,79252.0,0.37389829]
[1743967591340,0.3841,79256.0,79252.0,0.37389829]
[1743967591540,0.41875081,79255.0,79252.0,0.37389829]
[1743967591844,0.4186,79254.0,79252.0,0.07419829]
[1743967592041,0.4186,79254.0,79245.0,0.44867795]
[1743967592042,0.005,79246.0,79245.0,0.44867795]
[1743967592343,0.36595387,79246.0,79245.0,0.44867795]
[1743967593337,0.9344,79246.0,79245.0,0.44867795]
[1743967593537,0.78532,79246.0,79245.0,0.44867795]
[1743967593739,0.7854389,79246.0,79245.0,0.38580859]
[1743967593937,0.7804389,79246.0,79245.0,0.38580859]
[1743967594131,0.7854389,79246.0,79245.0,0.51199872]
[1743967594338,0.0060389,79246.0,79245.0,0.28619013]
[1743967594538,0.0051189,79246.0,79245.0,0.28619013]
[1743967595345,0.0051189,79246.0,79245.0,0.28683013]
[1743967595739,0.0051189,79246.0,79245.0,0.13683013]
[1743967595942,0.0051189,79246.0,79245.0,0.01064]
[1743967596137,0.0051189,79246.0,79245.0,0.13683013]
[1743967596339,0.0051189,79246.0,79245.0,0.01064]
[1743967596542,0.0051189,79246.0,79245.0,0.00064]
[1743967596845,0.0051189,79246.0,79240.0,0.00616364]
[1743967597044,0.1813,79245.0,79240.0,0.00680364]
[1743967597244,0.18242001,79245.0,79242.0,0.12619013]
[1743967597447,0.18242001,79245.0,79239.0,0.00946878]
[1743967597647,0.3608,79240.0,79239.0,0.01064]
[1743967597838,0.36200001,79240.0,79239.0,0.16]
[1743967598036,0.36200001,79240.0,79239.0,0.29949446]
[1743967598239,0.36200001,79240.0,79239.0,0.30017446]
[1743967598639,0.1954,79261.0,79239.0,0.30017446]
[1743967598640,0.3608,79259.0,79239.0,0.30017446]
[1743967598842,0.36156,79259.0,79249.0,0.35043829]
[1743967599045,0.36156,79259.0,79249.0,0.37107829]
[1743967599245,0.36156,79259.0,79250.0,0.03978481]
[1743967599538,0.00010424,79258.0,79250.0,0.18584936]
[1743967599733,0.00086424,79258.0,79251.0,0.01712445]
[1743967599934,0.00086424,79258.0,79251.0,0.02]
[1743967600147,0.00086424,79258.0,79252.0,0.00318545]
[1743967600347,0.00086424,79258.0,79252.0,0.32456125]
[1743967600543,0.00086424,79258.0,79253.0,0.01715154]
[1743967600846,0.1873,79265.0,79253.0,0.01715154]
[1743967601052,0.006,79258.0,79257.0,0.3608]
[1743967601242,0.006,79258.0,79257.0,0.3808]
[1743967601552,0.007,79258.0,79257.0,0.39795154]
[1743967601850,0.00711642,79258.0,79257.0,0.52412574]
[1743967602046,0.00611642,79258.0,79257.0,0.50412574]
[1743967602750,0.00011642,79258.0,79257.0,0.50412574]
[1743967602935,0.00511642,79258.0,79257.0,0.44104938]
[1743967603139,0.3608,79274.0,79257.0,0.45104938]
[1743967603341,0.3608,79274.0,79258.0,0.1907]
[1743967603540,0.1963,79273.0,79260.0,0.35043829]
[1743967603741,0.1963,79273.0,79260.0,0.36043829]
[1743967604048,0.1963,79273.0,79261.0,0.14332256]
[1743967604240,0.1963,79273.0,79261.0,0.15332256]
[1743967604241,0.19736319,79272.0,79261.0,0.15332256]
[1743967604440,0.1984032,79272.0,79262.0,0.01715154]
[1743967604650,0.1963,79271.0,79262.0,0.02715154]
[1743967605046,0.001,79271.0,79263.0,0.14330823]
[1743967605245,0.08569184,79279.0,79267.0,0.3608]
[1743967605441,0.08633184,79279.0,79276.0,0.3608]
[1743967605641,0.00850161,79279.0,79277.0,0.3849]
[1743967605843,0.00064,79279.0,79277.0,0.54173669]
[1743967606043,0.00064,79279.0,79278.0,0.01715154]
[1743967606243,0.00014033,79279.0,79278.0,0.03787154]
[1743967606446,0.00078033,79279.0,79278.0,0.01787154]
[1743967606642,0.00078033,79279.0,79278.0,0.01795154]
[1743967607245,0.00578033,79279.0,79278.0,0.01795154]
[1743967607551,0.00078033,79279.0,79278.0,0.14328914]
[1743967607742,0.00078033,79279.0,79278.0,0.15408914]
[1743967607942,0.00014033,79279.0,79278.0,0.15408914]
[1743967608948,0.00014033,79279.0,79278.0,0.24101278]
[1743967609645,0.3608,79288.0,79278.0,0.09101278]
[1743967609954,0.00088,79288.0,79287.0,0.35043829]
[1743967610143,0.182,79296.0,79287.0,0.01]
[1743967610343,0.182,79296.0,79287.0,0.3875]
[1743967610544,0.3608,79297.0,79288.0,0.12613044]
[1743967610839,0.08827,79295.0,79288.0,0.15613044]
[1743967611641,0.08827,79295.0,79288.0,0.16582803]
[1743967611846,0.08827,79295.0,79289.0,0.01752802]
[1743967612054,0.08827,79295.0,79288.0,0.16582803]
[1743967612055,0.08827,79295.0,79288.0,0.12027969]
[1743967612250,0.08827,79295.0,79294.0,0.3608]
[1743967612446,0.08827,79295.0,79294.0,0.3708]
[1743967612951,0.1848,79310.0,79294.0,0.3708]
[1743967613252,0.17533845,79310.0,79309.0,0.3608]
[1743967613448,0.1908,79321.0,79309.0,0.3608]
[1743967613754,0.4186,79327.0,79311.0,0.3608]
[1743967613946,0.00050496,79312.0,79311.0,0.3708]
[1743967614452,0.00050496,79312.0,79311.0,0.49688512]
[1743967615152,0.00050496,79312.0,79311.0,0.81250876]
[1743967616255,0.3688,79326.0,79311.0,0.81250876]
[1743967616451,0.36968,79326.0,79325.0,0.3608]
[1743967616756,0.00088,79326.0,79325.0,0.3616]
[1743967617151,0.00099756,79326.0,79325.0,0.86638512]
[1743967617355,0.00099756,79326.0,79325.0,0.87638512]
[1743967617750,0.00099756,79326.0,79325.0,0.49768512]
[1743967617948,0.51179756,79326.0,79325.0,0.0008]
[1743967618148,0.51179756,79326.0,79315.0,0.29772364]
[1743967618356,0.5433,79325.0,79315.0,0.29852364]
[1743967618552,0.54394,79325.0,79316.0,0.12606286]
[1743967618753,0.54394,79325.0,79316.0,0.12686286]
[1743967619059,0.36304,79325.0,79322.0,0.3608]
[1743967619259,0.36304,79325.0,79323.0,0.3811]
[1743967619561,0.08824,79324.0,79323.0,0.0008]
[1743967619748,0.08892,79324.0,79315.0,0.29772364]
[1743967619953,0.3769,79323.0,79317.0,0.3608]
[1743967620152,0.3777,79323.0,79317.0,0.3816]
[1743967620356,0.3777,79323.0,79318.0,0.388]
[1743967620655,0.1816,79323.0,79318.0,0.3988]
[1743967620850,0.1808,79323.0,79319.0,0.1260724]
[1743967621050,0.1808,79323.0,79319.0,0.1368724]
[1743967621251,0.3777,79323.0,79320.0,0.32492364]
[1743967621454,0.3777,79323.0,79320.0,0.32576364]
[1743967621856,0.3777,79323.0,79320.0,0.00084]